[Event "Maharashtra Challenge Matches 2023"]
[Site "Nagpur"]
[Date "2023.06.05"]
[Round "7.1"]
[White "Vidit, Santosh Gujrathi"]
[Black "Peter;Svidler"]
[Result "0-1"]
[Annotator "TA"]
[ECO "B08"]
[WhiteElo "2731"]
[BlackElo "2683"]
[PlyCount "82"]
[EventDate "2023.06.03"]
[EventType "match"]
[EventCountry "IND"]
[SourceTitle "playchess.com"]
[Source "ChessBase"]
[SourceQuality "1"]
[TimeControl "900+10"]

{[%evp 12,82,41,20,25,41,72,33,15,8,15,-18,12,-33,-31,-20,0,-89,-89,-162,-166,-141,-80,-272,-249,-426,-108,-84,-41,-55,-55,-94,-93,-143,-143,-145,-149,-137,-143,-149,-147,-156,-152,-166,-164,-160,-131,-142,-143,-149,-140,-218,-185,-243,-149,-265,-163,-224,-81,-122,0,-773,-745,-885,-920,-928,-1079,-29974,-29976,-29988,-29989,-29989,-29990]} 1. d4 {[%emt 0:12:18]} d6 {[%emt 0:12:23]} 2. e4 {[%emt 0:00:13]} Nf6 {[%emt 0:00:11]} 3. Nc3 {[%emt 0:00:10]} g6 {[%emt 0:00:09]} 4. Nf3 {[%emt 0:00:35]} Bg7 {[%emt 0:00:10]} 5. Be2 {[%emt 0:00:10]} O-O {[%emt 0:00:10]} 6. O-O {[%emt 0:00:10]} a6 {[%emt 0:00:10]} 7. Bg5 {[%emt 0:00:33]} h6 {[%emt 0:00:31] B08: Pirc Defence: Classical System.} 8. Be3 {[%emt 0:00:30]} b5 {[%emt 0:00:09]} 9. e5 {[%emt 0:00:16]} (9. Qc1 $5 {[%cal Re3h6]}) 9... Ng4 {[%emt 0:00:13] White is slightly better.} 10. Bf4 {[%emt 0:00:08] aiming for h3.} Nc6 {[%emt 0:00:16][%cal Rd6e5] [#]} 11. exd6 $146 {[%emt 0:00:31]} ({Predecessor:} 11. Re1 b4 12. Na4 Bd7 13. c3 bxc3 14. Nxc3 Rb8 15. Bg3 dxe5 16. d5 Nd4 17. h3 Nxf3+ 18. Bxf3 {1-0 Vernay,C (2513)-Bauer,C (2650) SUI-chT Switzerland 2021 (4.1)}) 11... cxd6 {[%emt 0:00:11]} 12. h3 {[%emt 0:00:19]} Nf6 {[%emt 0:00:09]} 13. d5 {[%emt 0:00:11]} Na5 {[%emt 0:00:18]} 14. b4 {[%emt 0:00:39] [#]} (14. Qd2 $11) 14... Qc7 $1 $17 {[%emt 0:00:17]} 15. Nxb5 {[%emt 0:00:33]} (15. Bd2 $17 {is a better defense.} Nc4 16. a4) 15... axb5 $19 {[%emt 0:00:09]} 16. bxa5 {[%emt 0:00:10]} Bb7 {[%emt 0:00:14]} (16... b4 $142 17. Rb1 Rxa5 18. Rxb4 Nxd5) 17. Nd4 $2 {[%emt 0:00:18]} (17. Bd2 $17) 17... Nxd5 {[%emt 0:00:12]} ({Inferior is} 17... Rxa5 18. Nxb5 Rxb5 19. Bxb5 $11) 18. Nxb5 $2 {[%emt 0:00:10]} (18. Be3) 18... Qxa5 $2 {[%emt 0:00:16]} (18... Qc6 $19 {and Black stays clearly on top.} 19. Bf3 Qxb5) 19. Bd2 $17 {[%emt 0:00:12]} Qd8 {[%emt 0:00:55] Black has more active pieces. The white rooks are badly placed.} 20. Rb1 {[%emt 0:00:11]} Rxa2 {[%emt 0:00:15][%cal Ba8a2,Ba2c2,Bc2c5][%mdl 32]} 21. Bf3 {[%emt 0:00:11] Hoping for c4.} Ba8 {[%emt 0:00:19]} (21... Qc8 {keeps more tension.} 22. c4 Nb6 23. Bxb7 Qxb7 24. Re1 Qc6) 22. Bxh6 {[%emt 0:00:17]} Bxh6 {[%emt 0:00:12]} 23. Bxd5 {[%emt 0:00:09]} Bxd5 {[%emt 0:00:10]} 24. Qxd5 {[%emt 0:00:09]} Rxc2 {[%emt 0:00:09]} 25. Nd4 {[%emt 0:00:12]} Rc5 {[%emt 0:00:10]} 26. Qe4 {[%emt 0:00:10]} d5 {[%emt 0:00:16][%cal Bd6d5,Bd5d4][%mdl 32]} 27. Qe2 {[%emt 0:00:10]} Bg7 {[%emt 0:00:10]} 28. Nf3 {[%emt 0:00:10]} d4 {[%emt 0:00:17]} 29. Rfd1 {[%emt 0:00:10]} e5 {[%emt 0:00:09]} 30. h4 {[%emt 0:00:10]} Qd5 {[%emt 0:00:13]} 31. Rb4 {[%emt 0:00:11]} (31. Ng5 $17) 31... Rfc8 {[%emt 0:00:26]} 32. Ng5 {[%emt 0:00:10]} (32. h5 $142) 32... Rc2 {[%emt 0:00:15]} 33. Qa6 {[%emt 0:00:08]} (33. Qf3 $17 Qxf3 34. gxf3) 33... f6 {[%emt 0:00:24][%cal Bf7f6,Bf6g5][%mdl 32]} 34. Rb5 {[%emt 0:00:11]} (34. Nf3 {was worth a try.}) 34... Qc6 $40 {[%emt 0:00:11][%mdl 128] Black wants a kill.} (34... Qc4 $19 {has better winning chances.} 35. Nh3 e4) 35. Rb6 {[%emt 0:00:09] [#]} Qc4 {[%emt 0:00:09]} (35... Qd7 $1 $17 36. Ne4 Qg4) 36. Qb7 $2 {[%emt 0:00:12][%mdl 8192]} fxg5 $19 {[%emt 0:00:13]} 37. Rxg6 {[%emt 0:00:09]} Qf7 {[%emt 0:00:09]} 38. Qe4 {[%emt 0:00:11]} Qxf2+ {[%emt 0:00:10]} 39. Kh1 {[%emt 0:00:09]} Rc1 {[%emt 0:00:11] Black mates.} 40. Rxg7+ {[%emt 0:00:10]} Kxg7 {[%emt 0:00:09]} 41. Qxe5+ {[%emt 0:00:09]} Qf6 {[%emt 0:00:09] Weighted Error Value: White=0.72/Black=0.40} 0-1

[Event "Maharashtra Challenge Matches 2023"]
[Site "Nagpur"]
[Date "2023.06.05"]
[Round "7.1"]
[White "Short, Nigel D"]
[Black "Sadhwani, Raunak"]
[Result "0-1"]
[Annotator "TA"]
[ECO "B08"]
[WhiteElo "2597"]
[BlackElo "2627"]
[PlyCount "81"]
[EventDate "2023.06.03"]
[EventType "match"]
[EventCountry "IND"]
[SourceTitle "playchess.com"]
[Source "ChessBase"]
[SourceQuality "1"]
[TimeControl "180+2"]

{[%evp 13,81,17,29,18,36,12,22,0,0,0,0,0,6,8,15,0,0,0,0,-3,-6,-2,-7,-7,0,-10,6,0,0,0,-6,-13,-22,-30,-8,-18,-22,-16,-8,-28,-8,-14,-10,-12,-3,-8,-11,-16,-8,-8,-10,-21,-10,-40,-48,-45,-40,-47,-49,-115,-61,-62,-62,-57,-57,-97,-106,-116,-111,-264]} 1. d4 {[%emt 0:00:01]} Nf6 {[%emt 0:00:01]} 2. Nf3 {[%emt 0:00:02]} g6 {[%emt 0:00:00]} 3. Nc3 {[%emt 0:00:03]} Bg7 {[%emt 0:00:02]} 4. e4 {[%emt 0:00:02]} d6 {[%emt 0:00:01]} 5. Be2 {[%emt 0:00:02]} O-O {[%emt 0:00:02]} 6. O-O {[%emt 0:00:03]} a6 {[%emt 0:00:01]} 7. a4 {[%emt 0:00:03][%cal Ba2a4,Ba4a5][%mdl 32]} Nc6 {[%emt 0:00:01]} 8. d5 {[%emt 0:00:21] B08: Pirc Defence: Classical System.} Nb4 {[%emt 0:00:11]} 9. a5 {[%emt 0:00:09]} e6 {[%emt 0:00:16]} 10. Ra4 {[%emt 0:00:20] The position is equal.} c5 {[%emt 0:00:01]} 11. dxc6 Nxc6 {[%emt 0:00:01]} 12. Bf4 {[%emt 0:00:13]} e5 {[%emt 0:00:27]} 13. Bg5 {[%emt 0:00:01] [#]} Nxa5 $146 {[%emt 0:00:04]} ({Predecessor:} 13... Be6 14. Qa1 Qc7 15. Rd1 Ne7 16. Qa3 Rad8 17. Be3 Nc8 18. Bg5 Ne7 19. Be3 Nc8 20. Bg5 {½-½ Bjerke,S (2219)-Trygstad,K (2298) NOR-chT 1112 2011 (2)}) 14. Nd5 {[%emt 0:00:02] [#] And now Bxf6 would win.} (14. Nxe5 {simplifies} dxe5 15. Qxd8 Rxd8 16. Rxa5 h6 17. Bxf6 Bxf6 18. Nd5) 14... Nc6 {[%emt 0:00:01]} 15. c3 {[%emt 0:00:34]} Be6 {[%emt 0:00:46]} 16. Nxf6+ {[%emt 0:00:03]} Bxf6 {[%emt 0:00:01]} 17. Bxf6 {[%emt 0:00:02]} Qxf6 {[%emt 0:00:01]} 18. Qxd6 {[%emt 0:00:01]} Rfd8 {[%emt 0:00:01]} 19. Qc5 {[%emt 0:00:11]} Bb3 {[%emt 0:00:16]} 20. Ra3 {[%emt 0:00:27]} Bc2 {[%emt 0:00:01]} 21. Qe3 $1 {[%emt 0:00:01] [#] Rc1 is the strong threat.} Qf4 $1 {[%emt 0:00:01]} 22. Qxf4 {[%emt 0:00:02]} exf4 {[%emt 0:00:01]} 23. Bc4 {[%emt 0:00:01]} Bd3 {[%emt 0:00:20]} (23... Bxe4 $5 24. Bxf7+ Kf8 $15) 24. Bxd3 {[%emt 0:00:07]} Rxd3 {[%emt 0:00:01]} 25. Re1 {[%emt 0:00:07]} h6 {[%emt 0:00:08]} 26. Raa1 {[%emt 0:00:18]} Rad8 {[%emt 0:00:06]} 27. h4 {[%emt 0:00:33]} Kg7 {[%emt 0:00:06]} 28. e5 {[%emt 0:00:01]} a5 {[%emt 0:00:23]} 29. Ra4 {[%emt 0:00:01]} Rd1 {[%emt 0:00:06] next ...Rxe1+ is good for Black.} 30. Kf1 {[%emt 0:00:01]} Rxe1+ {[%emt 0:00:05]} 31. Kxe1 $11 {[%emt 0:00:01][%mdl 4096] Endgame KRN-KRN} Rd5 {[%emt 0:00:01]} 32. Rxf4 {[%emt 0:00:03]} Rb5 {[%emt 0:00:00]} 33. b4 {[%emt 0:00:02]} axb4 {[%emt 0:00:02]} 34. cxb4 {[%emt 0:00:05]} Nxb4 {[%emt 0:00:01] White must now prevent ...Nd3+.} 35. Kd2 {[%emt 0:00:02][%cal Oe5e6] Inhibits Nd3.} Nc6 $1 {[%emt 0:00:02]} 36. Kc3 {[%emt 0:00:02]} ({White should play} 36. Re4 $15) 36... Rc5+ {[%emt 0:00:15]} (36... Nxe5 $17 37. Nxe5 Rxe5) 37. Rc4 $15 {[%emt 0:00:01]} Ra5 {[%emt 0:00:01]} 38. Re4 {[%emt 0:00:03]} Ra2 {[%emt 0:00:11]} 39. e6 {[%emt 0:00:04]} fxe6 {[%emt 0:00:03]} 40. Rxe6 {[%emt 0:00:02]} Rxf2 {[%emt 0:00:02]} 41. Nd4 $2 {[%emt 0:00:07] Weighted Error Value: White=0.09 (flawless) /Black=0.05 (flawless)} (41. Ne1 $17) 0-1

[Event "Maharashtra Challenge Matches 2023"]
[Site "Nagpur"]
[Date "2023.06.05"]
[Round "8.1"]
[White "Peter, Svidler"]
[Black "Vidit, Santosh Gujrathi"]
[Result "1-0"]
[Annotator "TA"]
[ECO "A28"]
[WhiteElo "2683"]
[BlackElo "2731"]
[PlyCount "102"]
[EventDate "2023.06.03"]
[EventType "match"]
[EventCountry "IND"]
[SourceTitle "playchess.com"]
[Source "ChessBase"]
[SourceQuality "1"]
[TimeControl "180+2"]

{[%evp 10,102,0,0,7,0,9,0,0,0,0,0,0,-5,-14,-6,-7,-6,0,0,0,0,0,0,0,-19,10,0,6,8,13,-19,0,-5,0,-24,85,98,208,130,170,169,164,160,154,152,156,158,156,157,805,908,891,873,935,853,1783,105,720,546,843,772,974,547,29994,0,0,0,547,549,530,537,580,588,570,565,528,548,597,577,514,490,625,612,652,214,524,522,542,534,506,510,485,485,411]} 1. c4 {[%emt 0:00:02]} Nf6 {[%emt 0:00:01]} 2. Nc3 {[%emt 0:00:01]} e5 {[%emt 0:00:01]} 3. Nf3 {[%emt 0:00:02]} Nc6 {[%emt 0:00:01]} 4. d3 {[%emt 0:00:03]} d5 {[%emt 0:00:05]} 5. cxd5 {[%emt 0:00:02]} Nxd5 {[%emt 0:00:01]} 6. e4 {[%emt 0:00:02]} Nb6 {[%emt 0:00:11] A28: English Opening: Four Knights Variation.} 7. Be2 {[%emt 0:00:02]} Be7 {[%emt 0:00:05]} 8. O-O {[%emt 0:00:03]} O-O {[%emt 0:00:01] The position is equal.} 9. Be3 {[%emt 0:00:02]} Be6 {[%emt 0:00:14]} 10. Rc1 {[%emt 0:00:31]} Bf6 {[%emt 0:00:08]} 11. Na4 {[%emt 0:00:02]} Nxa4 {[%emt 0:00:18]} 12. Qxa4 {[%emt 0:00:01]} Qd7 {[%emt 0:00:06] [#]} 13. Qb5 $146 {[%emt 0:00:51]} ({Predecessor:} 13. b3 Rfd8 14. h3 a5 15. Rfd1 Qe7 16. Bc5 Qd7 17. Rd2 h6 18. Be3 Qe7 19. Bc5 Qd7 20. Be3 Qe7 {½-½ Kruse,H (2386)-De Vassal,T (2406) FICGS W-ch qf2 email 2013 (4)}) 13... Rab8 {[%emt 0:00:03]} 14. a3 {[%emt 0:00:19]} a6 {[%emt 0:00:06]} 15. Qc5 {[%emt 0:00:02]} Rfd8 {[%emt 0:00:20]} 16. h3 {[%emt 0:00:17]} Rbc8 {[%emt 0:00:03]} 17. b4 {[%emt 0:00:09]} h6 {[%emt 0:00:06]} (17... Be7 $5 {[%cal Re7c5]} 18. Qc2 Nd4 19. Nxd4 exd4 $11) 18. Rfd1 {[%emt 0:00:06]} Bb3 {[%emt 0:00:17]} 19. Rd2 {[%emt 0:00:05]} Ba4 {[%emt 0:00:03]} 20. Nh2 {[%emt 0:00:07]} Qd6 {[%emt 0:00:21]} 21. Bg4 {[%emt 0:00:07]} Ra8 {[%emt 0:00:08]} 22. Nf3 {[%emt 0:00:03]} Bb5 {[%emt 0:00:07]} (22... Qxc5 $11 {keeps the balance.} 23. Rxc5 Bb5) 23. Qc2 $16 {[%emt 0:00:04] Threatens to win with Bc5.} Qf8 {[%emt 0:00:29]} (23... Bxd3 $2 24. Qb3 $18) (23... b6 $16) 24. Qb3 {[%emt 0:00:16]} Qe8 {[%emt 0:00:03]} 25. a4 {[%emt 0:00:10]} Nd4 {[%emt 0:00:02] [#]} 26. Bxd4 {[%emt 0:00:02]} Bxa4 {[%emt 0:00:01]} 27. Qa2 exd4 {[%emt 0:00:04]} 28. Rxc7 {[%emt 0:00:02]} Bc6 {[%emt 0:00:14]} 29. Rxf7 {[%emt 0:00:05] White has more active pieces.} Bd5 $2 {[%emt 0:00:07]} (29... Qxf7 $2 30. Be6 Rf8 31. Bxf7+ Rxf7 32. b5 Bxb5 33. e5 $18) (29... Kh8 $16) 30. exd5 $18 {[%emt 0:00:04]} (30. Rxg7+ Kxg7 31. exd5 a5 $14) 30... Kxf7 {[%emt 0:00:01] Black is weak on the light squares} 31. Re2 {[%emt 0:00:02]} Qb5 {[%emt 0:00:04]} 32. d6+ {[%emt 0:00:04]} Kf8 {[%emt 0:00:03]} 33. Re6 $2 {[%emt 0:00:06]} (33. Qe6 Re8 34. Qa2 Rxe2 35. Qxe2 h5 $15) (33. Nxd4 $18 Rdb8 34. Nxb5 axb5 35. Qd5) 33... Rac8 $2 {[%emt 0:00:07][%mdl 8192]} (33... Qxd3 $2 34. Re7 Qg6 35. Bf5 $18 (35. Rxb7 Rxd6 36. b5 Qe8 $15)) (33... Re8 $16) 34. g3 {[%emt 0:00:07][%cal Of3d4] Nxd4! is the strong threat.} (34. Re1 Rc6 $16) 34... Rc1+ {[%emt 0:00:03]} 35. Kh2 {[%emt 0:00:01][%cal Oe6f6] Strongly threatening Rxf6+!} Qc6 {[%emt 0:00:02] [#]} 36. d7 $1 {[%emt 0:00:04][%mdl 512]} Qc2 {[%emt 0:00:02]} (36... Rc2 37. Qb3) 37. Qxc2 {[%emt 0:00:05]} (37. Re8+ {mates} Rxe8 38. Qg8+ {[%mdl 64] Skewer, Promotion} Kxg8 39. dxe8=Q+ (39. dxe8=R+ $2 Kh7 $19) 39... Kh7 40. Bf5+ g6 41. Qxg6+ Kh8 42. Qh7#) 37... Rxc2 $11 {[%emt 0:00:01]} 38. Bh5 {[%emt 0:00:01] Intending Re8+ and mate.} g6 $2 {[%emt 0:00:05][%mdl 8192]} (38... Rxd7 $2 39. Re8#) (38... Rxf2+ $2 39. Kg1 g6 40. Kxf2 $18) (38... Be7 $11 {and Black stays safe.}) 39. Rxf6+ $18 {[%emt 0:00:01]} Ke7 {[%emt 0:00:01]} 40. Rxg6 {[%emt 0:00:01]} Rxf2+ {[%emt 0:00:02]} 41. Kg1 {[%emt 0:00:01]} Rb2 {[%emt 0:00:02]} 42. Rg7+ {[%emt 0:00:02]} (42. Nxd4 Rxd7 43. Re6+ Kd8 $18) 42... Kd6 {[%emt 0:00:01]} 43. Bg4 {[%emt 0:00:02]} (43. Nxd4 Rxd7 44. Rg8 Rxb4 $16) 43... Rxb4 {[%emt 0:00:02]} 44. Rg6+ {[%emt 0:00:02]} Kc7 {[%emt 0:00:02]} 45. Ne5 {[%emt 0:00:01]} Rf8 {[%emt 0:00:04]} 46. h4 $1 {[%emt 0:00:06]} (46. Rxh6 Rb1+ 47. Kg2 Rb2+ 48. Kg1 Rb1+ 49. Kg2 Rb2+ 50. Kg1 Rb1+ $11) 46... a5 {[%emt 0:00:02]} 47. Be6 $2 {[%emt 0:00:05]} (47. Rxh6 Rb1+ 48. Kg2) 47... a4 $2 {[%emt 0:00:02]} (47... Rb6 48. Nf7 (48. Rxh6 a4 $14) 48... Rxf7 49. Bxf7 Rxg6 50. Bxg6 Kxd7) 48. Nf7 {[%emt 0:00:01] White is clearly winning.} (48. Rxh6 Rb6 $11) 48... a3 {[%emt 0:00:02]} 49. d8=Q+ (49. Nxh6 Rb1+ 50. Kg2 Rb2+ 51. Kh3 a2 52. Bxa2 Rxa2 $11) (49. d8=N Rb2 50. Bd5 (50. Rxh6 Rg8 $11) 50... Rxd8 51. Nxd8 Kxd8 52. Rxh6 a2 53. Bxa2 Rxa2 54. Rd6+ Ke8 55. Rxd4 Kf8 $18) 49... Rxd8 {[%emt 0:00:01]} 50. Nxd8 {[%emt 0:00:03]} ({Stronger than} 50. Rxh6 Re8 51. Ng5 Rb2 $17) ({Avoid the trap} 50. Nxh6 $2 Rd6 51. Rg7+ Kb6 $19) 50... Kxd8 {[%emt 0:00:01]} 51. Rxh6 {[%emt 0:00:01]} Rb2 {[%emt 0:00:04] Weighted Error Value: White=0.73/Black=0.62} 1-0

[Event "Maharashtra Challenge Matches 2023"]
[Site "Nagpur"]
[Date "2023.06.05"]
[Round "8.1"]
[White "Svidler, Peter"]
[Black "Vidit, Santosh Gujrathi"]
[Result "1-0"]
[Annotator "TA"]
[ECO "A28"]
[WhiteElo "2683"]
[BlackElo "2731"]
[PlyCount "102"]
[EventDate "2023.06.03"]
[EventType "match"]
[EventCountry "IND"]
[SourceTitle "playchess.com"]
[Source "ChessBase"]
[SourceQuality "1"]
[TimeControl "180+2"]

{[%evp 10,102,-1,0,0,0,0,0,0,0,0,0,0,-1,-14,-6,-15,-8,0,0,0,0,0,0,-14,-20,0,0,4,5,10,-12,-4,-7,0,-32,95,84,229,116,150,158,159,173,162,164,154,147,164,170,871,870,890,877,915,887,1445,110,736,428,890,859,1077,600,29994,0,0,0,545,541,541,567,541,597,587,561,544,530,582,563,519,484,632,641,732,290,489,508,599,587,556,553,549,536,492]} 1. c4 {[%emt 0:00:02]} Nf6 {[%emt 0:00:01]} 2. Nc3 {[%emt 0:00:01]} e5 {[%emt 0:00:01]} 3. Nf3 {[%emt 0:00:02]} Nc6 {[%emt 0:00:01]} 4. d3 {[%emt 0:00:03]} d5 {[%emt 0:00:05]} 5. cxd5 {[%emt 0:00:02]} Nxd5 {[%emt 0:00:01]} 6. e4 {[%emt 0:00:02]} Nb6 {[%emt 0:00:11] A28: English Opening: Four Knights Variation.} 7. Be2 {[%emt 0:00:02]} Be7 {[%emt 0:00:05]} 8. O-O {[%emt 0:00:03]} O-O {[%emt 0:00:01] The position is equal.} 9. Be3 {[%emt 0:00:02]} Be6 {[%emt 0:00:14]} 10. Rc1 {[%emt 0:00:31]} Bf6 {[%emt 0:00:08]} 11. Na4 {[%emt 0:00:02]} Nxa4 {[%emt 0:00:18]} 12. Qxa4 {[%emt 0:00:01]} Qd7 {[%emt 0:00:06] [#]} 13. Qb5 $146 {[%emt 0:00:51]} ({Predecessor:} 13. b3 Rfd8 14. h3 a5 15. Rfd1 Qe7 16. Bc5 Qd7 17. Rd2 h6 18. Be3 Qe7 19. Bc5 Qd7 20. Be3 Qe7 {½-½ Kruse,H (2386)-De Vassal,T (2406) FICGS W-ch qf2 email 2013 (4)}) 13... Rab8 {[%emt 0:00:03]} 14. a3 {[%emt 0:00:19]} a6 {[%emt 0:00:06]} 15. Qc5 {[%emt 0:00:02]} Rfd8 {[%emt 0:00:20]} 16. h3 {[%emt 0:00:17]} Rbc8 {[%emt 0:00:03]} 17. b4 {[%emt 0:00:09]} h6 {[%emt 0:00:06]} 18. Rfd1 {[%emt 0:00:06]} Bb3 {[%emt 0:00:17]} 19. Rd2 {[%emt 0:00:05]} Ba4 {[%emt 0:00:03]} 20. Nh2 {[%emt 0:00:07]} Qd6 {[%emt 0:00:21]} 21. Bg4 {[%emt 0:00:07] aiming for Qxd6.} Ra8 {[%emt 0:00:08]} 22. Nf3 {[%emt 0:00:03]} Bb5 {[%emt 0:00:07]} (22... Qxc5 $15 {keeps the upper hand.} 23. Rxc5 Bb5) 23. Qc2 $16 {[%emt 0:00:04] Black must now prevent Bc5.} Qf8 {[%emt 0:00:29]} (23... Bxd3 $2 24. Qb3 $18) (23... Nd4 $16 24. Bxd4 (24. Qxc7 Nb3 $17) 24... exd4) 24. Qb3 {[%emt 0:00:16]} (24. a4 $1 $18) 24... Qe8 {[%emt 0:00:03]} 25. a4 {[%emt 0:00:10] White is much more active.} Nd4 {[%emt 0:00:02]} 26. Bxd4 {[%emt 0:00:02]} Bxa4 {[%emt 0:00:01]} 27. Qa2 {Threatens to win with Bb2.} exd4 {[%emt 0:00:04]} 28. Rxc7 {[%emt 0:00:02]} Bc6 {[%emt 0:00:14] [#]} 29. Rxf7 $1 {[%emt 0:00:05]} Bd5 $2 {[%emt 0:00:07]} (29... Qxf7 $2 30. Be6 Rf8 31. Bxf7+ Rxf7 32. b5 Bxb5 33. e5 $18) (29... Kh8) 30. exd5 $18 {[%emt 0:00:04]} (30. Rxg7+ Kxg7 31. exd5 a5 $16) 30... Kxf7 {[%emt 0:00:01] Black is weak on the light squares} 31. Re2 {[%emt 0:00:02]} Qb5 {[%emt 0:00:04]} 32. d6+ {[%emt 0:00:04]} Kf8 {[%emt 0:00:03]} 33. Re6 $2 {[%emt 0:00:06]} (33. Qe6 Re8 34. Qa2 Rxe2 35. Qxe2 h5 $11) (33. Nxd4 $18 {is the precise move to win.} Bxd4 34. Re7) 33... Rac8 $2 {[%emt 0:00:07][%mdl 8192]} (33... Qxd3 $2 34. Re7 Qg6 35. Bf5 $18 (35. Rxb7 Rxd6 36. Be6 Be7 $15)) (33... Re8 $16) 34. g3 {[%emt 0:00:07][%cal Of3d4] And now Nxd4! would win.} (34. Re1 Rc6 $14) 34... Rc1+ {[%emt 0:00:03]} (34... Qxb4 35. Bh5 Rd7 36. Qe2 Rf7 37. d7 Rc1+ 38. Kg2 g6 39. Rxf6) (34... Qxd3 $142 35. Rxf6+ {[%mdl 64] Discovered Attack} gxf6) 35. Kh2 {[%emt 0:00:01][%cal Oe6f6] Strongly threatening Rxf6+!} Qc6 {[%emt 0:00:02] [#]} 36. d7 $1 {[%emt 0:00:04][%mdl 512]} Qc2 {[%emt 0:00:02]} (36... Rc2 37. Qb3) 37. Qxc2 {[%emt 0:00:05]} (37. Re8+ {mates} Rxe8 38. Qg8+ {[%mdl 64] Skewer, Promotion} Kxg8 39. dxe8=Q+ (39. dxe8=R+ $2 Kh7 $19) 39... Kh7 40. Bf5+ g6 41. Qxg6+ Kh8 42. Qh7#) 37... Rxc2 $11 {[%emt 0:00:01]} 38. Bh5 {[%emt 0:00:01] White threatens Re8+ and mate.} g6 $2 {[%emt 0:00:05][%mdl 8192]} (38... Rxd7 $2 39. Re8#) (38... Rxf2+ $2 39. Kg1 g6 40. Rxf6+ Ke7 41. Rxg6 $18) (38... Be7 $11) 39. Rxf6+ $18 {[%emt 0:00:01]} Ke7 {[%emt 0:00:01]} 40. Rxg6 {[%emt 0:00:01]} Rxf2+ {[%emt 0:00:02]} 41. Kg1 {[%emt 0:00:01]} Rb2 {[%emt 0:00:02]} 42. Rg7+ {[%emt 0:00:02]} (42. Nxd4 Rxd7 43. Re6+ Kd8 $18) 42... Kd6 {[%emt 0:00:01]} 43. Bg4 {[%emt 0:00:02]} (43. Nxd4 Rxd7 44. Rg6+ Kc7 45. Ne6+ Kb8 $16) 43... Rxb4 {[%emt 0:00:02]} 44. Rg6+ {[%emt 0:00:02]} Kc7 {[%emt 0:00:02]} 45. Ne5 {[%emt 0:00:01]} Rf8 {[%emt 0:00:04]} 46. h4 $1 {[%emt 0:00:06]} (46. Rxh6 Rb1+ 47. Kg2 Rb2+ 48. Kg1 Rb1+ 49. Kg2 Rb2+ 50. Kg1 Rb1+ $11) 46... a5 {[%emt 0:00:02]} 47. Be6 $2 {[%emt 0:00:05]} (47. Rxh6 Rb1+ 48. Kg2) 47... a4 $2 {[%emt 0:00:02] [#]} (47... Rb6 48. Nf7 (48. Rxh6 a4 $14) 48... Rxf7 49. Bxf7 Rxg6 50. Bxg6 Kxd7) 48. Nf7 $1 {[%emt 0:00:01] White is clearly winning.} (48. Rxh6 Rb6 $11) 48... a3 {[%emt 0:00:02]} 49. d8=Q+ (49. Nxh6 Rb1+ 50. Kh2 Rb2+ 51. Kh3 a2 52. Bxa2 Rxa2 $11) 49... Rxd8 {[%emt 0:00:01]} 50. Nxd8 {[%emt 0:00:03]} ({Worse is} 50. Rxh6 Re8 51. Ng5 Rb2 $17) ({But not} 50. Nxh6 $2 Rd6 51. Rg7+ Kb6 $19) 50... Kxd8 {[%emt 0:00:01]} 51. Rxh6 {[%emt 0:00:01]} Rb2 {[%emt 0:00:04] An exciting game.   Weighted Error Value: White=0.79/Black=0.62} 1-0

[Event "Maharashtra Challenge Matches 2023"]
[Site "Nagpur"]
[Date "2023.06.05"]
[Round "8.1"]
[White "Sadhwani, Raunak"]
[Black "Sadwhani, Raunak"]
[Result "1-0"]
[Annotator "TA"]
[ECO "E10"]
[WhiteElo "2627"]
[BlackElo "2627"]
[PlyCount "53"]
[EventDate "2023.06.03"]
[EventType "match"]
[EventCountry "IND"]
[SourceTitle "playchess.com"]
[Source "ChessBase"]
[SourceQuality "1"]
[TimeControl "180+2"]

{[%evp 16,53,14,6,32,4,24,0,0,0,14,-2,33,10,32,37,33,22,27,4,34,0,0,0,28,7,48,54,52,0,0,0,110,0,236,89,1493,1469,1434,1403]} 1. d4 {[%emt 0:00:01]} Nf6 {[%emt 0:00:02]} 2. c4 {[%emt 0:00:01]} e6 {[%emt 0:00:01]} 3. Nf3 {[%emt 0:00:01]} d5 {[%emt 0:00:02]} 4. g3 {[%emt 0:00:01]} Bb4+ {[%emt 0:00:01]} 5. Bd2 {[%emt 0:00:01]} Be7 {[%emt 0:00:02]} 6. Bg2 {[%emt 0:00:02]} O-O {[%emt 0:00:01]} 7. O-O {[%emt 0:00:01]} Nbd7 {[%emt 0:00:02]} 8. Qc2 {[%emt 0:00:02]} c6 {[%emt 0:00:05]} 9. Rd1 {[%emt 0:00:01]} a5 {[%emt 0:00:08] E11: Bogo-Indian.} 10. b3 {[%emt 0:00:12]} Ne4 {[%emt 0:00:10]} 11. Be1 {[%emt 0:00:08]} f5 {[%emt 0:00:03] [#] The position is equal.} 12. Nc3 $146 {[%emt 0:00:04]} ({Predecessor:} 12. e3 Bd6 13. Nc3 g5 14. cxd5 exd5 15. Ne2 Qe7 16. Nc1 f4 17. exf4 gxf4 18. Nd3 {0-1 Bunda,V (2262)-Omelja,A (2442) SVK-chT1E 1920 2019 (4.2)}) 12... Qe8 {[%emt 0:00:05]} 13. a3 {[%emt 0:00:13][%cal Ob3b4]} Qh5 {[%emt 0:00:04]} 14. e3 {[%emt 0:00:13][%cal Ob3b4,Be2e3,Be3e4][%mdl 32]} g5 {[%emt 0:00:13]} 15. Ne5 {[%emt 0:00:02]} Nxe5 {[%emt 0:00:06]} 16. dxe5 {[%emt 0:00:02]} Nxc3 17. Bxc3 {[%emt 0:00:02]} f4 {[%emt 0:00:47]} 18. e4 {[%emt 0:00:01][%cal Re4d5]} dxc4 {[%emt 0:00:06]} 19. bxc4 {[%emt 0:00:03]} f3 {[%emt 0:00:19]} (19... b6 $5) 20. Bf1 {[%emt 0:00:02][%cal Od1d6]} c5 {[%emt 0:00:01]} (20... Qg6 $5) 21. Rab1 {[%emt 0:00:05]} Ra6 {[%emt 0:00:14]} 22. Rb5 {[%emt 0:00:23]} (22. Rd3 $14) 22... b6 $1 $11 {[%emt 0:00:06]} 23. Rbb1 {[%emt 0:00:04]} Rd8 {[%emt 0:00:09]} (23... Qe8 $11 {remains equal.}) 24. h3 {[%emt 0:00:38]} (24. Rxd8+ $16 Bxd8 25. Rd1) 24... g4 $2 {[%emt 0:00:16]} (24... Bd7 $1 $11 {and Black stays safe.}) 25. Qa4 {[%emt 0:00:11]} (25. Rxd8+ $18 {has better winning chances.} Bxd8 26. hxg4) 25... gxh3 $2 {[%emt 0:00:16][%mdl 8192] [#]} (25... Rxd1 $2 26. Rxd1 Kf8 27. hxg4 $18) (25... Rf8 $16) 26. Rxd8+ $1 $18 {[%emt 0:00:10]} ({Not} 26. Kh2 Rf8 27. Bxh3 (27. Qc6 Qe8 $16) 27... Kh8 $16) 26... Bxd8 {[%emt 0:00:01] [#]} 27. Qc6 $1 {[%emt 0:00:02] Weighted Error Value: White=0.31/Black=0.39} 1-0